bitfinex/quotes_ETHUSD_20260129
["timestamp","ask_amount","ask_price","bid_price","bid_amount"]
[1769690075050,0.002,2937.0,2936.3,2.8394483]
[1769690075750,0.002,2937.0,2936.3,2.80539184]
[1769690076252,0.002,2937.0,2936.3,3.6567961]
[1769690076449,0.34286197,2937.0,2936.3,3.6567961]
[1769690079823,1.19407452,2937.0,2936.3,3.6567961]
[1769690080688,1.19407452,2937.0,2936.3,2.80539184]
[1769690081489,1.19407452,2937.0,2936.3,3.65680207]
[1769690082177,0.34286197,2937.0,2936.3,3.65680207]
[1769690083298,0.34286197,2937.0,2936.4,2.80439184]
[1769690083687,0.002,2937.0,2936.4,2.80439184]
[1769690085160,0.002,2937.0,2936.6,2.80439184]
[1769690085798,0.002,2937.2,2936.6,2.80439184]
[1769690087170,2.74260207,2937.2,2936.6,0.85130371]
[1769690087574,2.74260207,2937.2,2936.5,0.001]
[1769690087786,0.27426021,2937.1,2936.5,0.85235323]
[1769690087986,0.27426021,2937.1,2936.5,0.85233835]
[1769690089298,0.27426021,2937.1,2936.5,0.001]
[1769690091068,3.01486228,2937.1,2936.5,0.001]
[1769690094522,3.86605731,2937.1,2936.5,0.001]
[1769690094676,0.38680573,2937.0,2936.5,0.001]
[1769690096513,1.23802587,2937.0,2936.5,0.001]
[1769690098713,1.23802587,2937.0,2936.7,0.001]
[1769690099723,2.92916359,2936.9,2936.7,0.001]
[1769690101527,1.23802587,2937.0,2936.7,0.001]
[1769690101995,0.38680573,2937.0,2936.7,0.001]
[1769690102203,0.002,2937.2,2936.7,2.82264809]
[1769690102619,0.002,2937.2,2936.9,2.82164809]
[1769690105737,0.13330299,2937.4,2936.9,2.82164809]
[1769690105738,0.13330299,2937.4,2937.0,2.82164809]
[1769690107247,0.13330299,2937.4,2937.1,2.82164809]
[1769690110209,0.13330299,2937.4,2937.2,0.001]
[1769690110824,0.13530299,2937.4,2937.2,0.001]
[1769690114227,0.13530299,2937.4,2937.2,0.36838203]
[1769690114414,0.13530299,2937.4,2937.2,1.21952759]
[1769690114858,0.13530299,2937.4,2937.2,0.36838203]
[1769690115166,0.13530299,2937.4,2937.2,3.19003012]
[1769690115334,0.13530299,2937.4,2937.2,4.04117698]
[1769690115740,0.13530299,2937.4,2937.2,3.19003012]
[1769690116563,0.13530299,2937.4,2937.2,4.04117817]
[1769690117447,0.13530299,2937.4,2937.2,4.04116188]
[1769690117974,0.13530299,2937.4,2937.3,3.22576428]
[1769690121066,0.85093306,2938.0,2937.3,3.22576428]
[1769690121266,0.85093306,2938.0,2937.3,2.82164809]
[1769690122246,0.85093306,2938.0,2937.3,3.67276938]
[1769690122447,0.85093306,2938.0,2937.3,2.82164809]
[1769690123161,3.40358391,2938.1,2937.3,2.82164809]
[1769690123346,1.35136375,2938.0,2937.3,2.82164809]
[1769690124382,0.002,2937.8,2937.3,2.82164809]
[1769690124560,0.002,2937.8,2937.3,3.67276965]
[1769690124760,0.002,2937.8,2937.3,2.82164809]
[1769690125170,0.002,2937.8,2937.3,3.67276874]
[1769690127601,0.002,2938.0,2937.4,2.96302289]
[1769690129206,3.0357218,2938.5,2937.4,2.96302289]
[1769690129363,0.10085418,2939.2,2938.0,2.96302289]
[1769690129565,3.0357218,2939.0,2937.6,2.96302289]
[1769690129804,3.0357218,2939.0,2937.4,3.40434607]
[1769690129805,3.0357218,2938.7,2937.4,3.40434607]
[1769690129973,3.0357218,2938.7,2937.5,3.40422801]
[1769690130174,1.62516004,2938.9,2937.3,0.85112177]
[1769690130175,2.59131654,2938.4,2937.3,0.85112177]
[1769690130373,2.59484069,2938.3,2937.3,0.85112177]
[1769690131398,2.59484069,2938.3,2937.4,2.96302289]
[1769690131603,2.59484069,2938.3,2937.5,0.85106382]
[1769690131801,0.25948407,2938.2,2937.5,0.85106382]
[1769690136306,0.8104158,2938.6,2937.6,2.86271095]
[1769690136604,2.61834741,2938.7,2937.7,3.71371683]
[1769690137102,2.61834741,2938.8,2937.8,2.86271095]
[1769690137276,2.61834741,2938.8,2937.7,0.85100588]
[1769690137478,0.713,2938.9,2937.7,0.85100588]
[1769690137479,0.002,2938.0,2937.7,0.85100588]
[1769690137717,0.002,2938.0,2937.7,1.56277992]
[1769690138078,0.002,2938.0,2937.7,0.85100588]
[1769690140106,2.6278384,2938.9,2937.8,2.86271095]
[1769690141205,3.47537426,2938.9,2938.0,2.86271095]
[1769690141409,0.85067175,2938.9,2938.0,2.86271095]
[1769690141773,2.62470251,2938.8,2938.0,2.86271095]
[1769690142012,2.97223994,2938.7,2937.8,0.85095457]
[1769690143622,2.62169973,2938.5,2937.6,0.85103485]
[1769690144186,2.62169973,2938.5,2937.6,3.7137458]
[1769690146020,3.47247586,2938.5,2937.6,3.7137458]
[1769690146331,2.61872159,2938.4,2937.6,0.85103485]
[1769690146627,2.96567121,2938.4,2937.6,0.85103485]
[1769690148712,3.81648077,2938.4,2937.5,2.86271095]
[1769690149908,3.81647712,2938.4,2937.5,2.86271095]
[1769690150116,3.81647712,2938.4,2937.8,0.001]
[1769690150615,2.96567121,2938.4,2937.8,0.001]
[1769690150819,2.99342608,2938.3,2937.8,0.001]
[1769690151395,3.84426005,2938.3,2937.8,0.001]
[1769690151601,2.61019864,2938.2,2937.8,0.001]
[1769690153314,0.85089003,2938.1,2937.8,0.001]
[1769690156299,3.45314737,2938.1,2937.8,0.001]
[1769690156499,0.68567075,2938.0,2937.8,0.001]
[1769690157928,1.53660181,2938.0,2937.8,0.001]
[1769690158239,0.68567075,2938.0,2937.8,0.001]
[1769690158434,1.53659825,2938.0,2937.8,0.001]
[1769690158630,0.68567075,2938.0,2937.8,0.001]
[1769690158834,0.713,2938.0,2937.8,0.001]
[1769690160344,1.23269964,2938.3,2937.8,0.001]
[1769690160551,0.713,2938.2,2937.8,0.001]
[1769690162546,0.85089003,2938.1,2937.8,0.001]
[1769690164046,0.85089003,2938.1,2938.0,0.001]
[1769690164248,1.6452881,2938.1,2938.0,0.001]
[1769690166839,2.3582881,2938.1,2938.0,0.001]
[1769690167044,2.3582881,2938.1,2937.8,0.001]
[1769690167867,2.58893774,2938.0,2937.2,2.92398825]
[1769690168161,0.49472258,2937.9,2937.2,2.92398825]
[1769690168642,2.3582881,2938.1,2937.2,2.92398825]
[1769690170071,2.3582881,2938.1,2937.2,3.77513845]
[1769690170823,2.3582881,2938.1,2937.2,0.8521502]
[1769690170976,2.3582881,2938.1,2937.3,2.92298825]
[1769690173066,1.6452881,2938.1,2937.3,2.92298825]
[1769690173260,1.47665478,2938.0,2937.3,2.92298825]
[1769690173769,2.3275903,2938.0,2937.3,2.92298825]
[1769690175378,0.76365478,2938.0,2937.4,2.92298825]
[1769690175553,1.56389281,2938.1,2937.4,2.92298825]
[1769690175741,1.56389281,2938.1,2937.5,2.92398825]
[1769690175957,0.002,2937.9,2937.5,2.92398825]
[1769690181114,0.002,2937.9,2937.5,0.001]
[1769690190059,0.002,2937.9,2937.7,0.001]
[1769690198487,0.002,2937.9,2937.7,2.81301242]
[1769690200251,0.002,2937.9,2937.7,0.001]
[1769690201850,0.002,2937.9,2937.7,2.81301242]
[1769690204782,0.002,2938.1,2937.8,2.81201242]
[1769690205292,6.33,2938.6,2938.0,2.81201242]
[1769690206003,6.33,2938.6,2938.1,2.81201242]
[1769690209591,6.33,2938.6,2938.2,2.81201242]
[1769690209770,0.85068998,2938.8,2938.2,2.81201242]
[1769690211791,3.40251977,2939.0,2938.2,2.81201242]
[1769690212088,0.49661492,2938.9,2938.2,2.81201242]
[1769690213203,0.002,2938.7,2938.2,2.81201242]
[1769690214393,0.002,2938.7,2938.0,2.81201242]
[1769690215599,0.002,2938.7,2938.1,2.81692545]
[1769690221302,0.002,2938.7,2937.8,0.28130124]
[1769690221608,2.54983379,2938.7,2937.7,2.81792545]
[1769690221902,0.8507742,2938.5,2937.7,2.81792545]
[1769690223177,0.8507742,2938.5,2937.8,2.81692545]
[1769690224003,2.54667677,2938.4,2937.5,0.001]
[1769690224315,2.54667677,2938.4,2937.5,2.81792545]
[1769690224525,0.3397451,2938.3,2937.5,2.81792545]
[1769690224817,2.88585487,2938.3,2937.5,0.001]
[1769690225614,2.88585487,2938.3,2937.5,2.81792545]
[1769690225986,0.85086107,2938.2,2937.5,2.81792545]
[1769690226376,0.1024,2938.0,2936.7,2.81792545]
[1769690226717,3.2580189,2938.1,2936.9,2.81692545]
[1769690226870,0.713,2937.9,2936.9,2.81692545]
[1769690227077,2.54400288,2937.8,2936.9,2.81692545]
[1769690227318,2.86916074,2937.7,2936.7,2.81792545]
[1769690228124,0.85103485,2937.6,2936.7,2.81792545]
[1769690228555,2.54292102,2937.4,2936.5,0.001]
[1769690230130,2.54239403,2937.2,2936.3,0.001]
[1769690231435,2.54239403,2937.2,2936.3,2.81792545]
[1769690232302,0.85117973,2937.1,2936.3,2.81792545]
[1769690232600,3.39204558,2937.1,2936.3,2.81792545]
[1769690232801,2.54086585,2937.0,2936.3,0.001]
[1769690233002,0.33920456,2936.9,2936.3,0.001]
[1769690234839,0.85126668,2936.8,2936.3,0.001]
[1769690236739,0.85126668,2936.8,2936.5,0.001]
[1769690239236,0.85126668,2936.8,2936.3,0.001]
[1769690239428,0.85126668,2936.8,2936.0,2.81692545]
[1769690239605,0.78465661,2936.7,2936.0,2.81692545]
[1769690240905,0.85132466,2936.6,2936.0,2.81692545]
[1769690244812,0.85132466,2936.6,2935.8,2.81692545]
[1769690249450,0.85132466,2936.6,2936.0,0.001]
[1769690249653,0.002,2936.4,2936.0,0.001]
[1769690250020,0.25349333,2936.3,2936.0,0.001]
[1769690251926,0.85144063,2936.2,2936.0,0.001]
[1769690258697,0.002,2936.4,2935.9,2.7227981]
[1769690261655,0.002,2936.4,2936.2,0.001]
[1769690261858,0.002,2936.4,2936.2,2.7237981]
[1769690268395,0.34293689,2936.4,2936.2,2.7237981]
[1769690268694,0.34293689,2936.4,2936.2,0.001]
[1769690270393,1.19433588,2936.4,2936.0,2.7227981]
[1769690270581,1.19433588,2936.4,2935.6,2.7227981]
[1769690270982,1.19433588,2936.4,2935.7,2.7227981]
[1769690271187,1.19432132,2936.4,2935.7,2.7227981]
[1769690273167,1.19432132,2936.4,2936.2,0.001]
[1769690273786,0.45997374,2936.3,2936.2,0.001]
[1769690276502,0.45997374,2936.3,2935.8,2.7227981]
[1769690276798,0.85338443,2936.4,2935.8,2.7227981]
[1769690280203,0.002,2936.4,2935.8,2.7227981]
[1769690283802,0.002,2936.4,2935.9,2.7350449]
[1769690284873,0.002,2936.4,2935.9,2.7360449]
[1769690285075,0.002,2936.2,2935.9,2.7360449]
[1769690288180,0.002,2936.6,2936.0,2.7350449]
[1769690293492,0.85332466,2936.6,2936.0,2.7350449]
[1769690294616,0.002,2936.6,2936.0,2.7350449]
[1769690297287,0.002,2936.6,2936.2,2.7350449]
[1769690297487,0.002,2936.4,2936.2,2.7350449]
[1769690302230,0.002,2936.4,2936.1,0.001]
[1769690302812,0.002,2936.4,2936.1,2.7360449]
[1769690303524,0.002,2936.4,2936.1,3.09490185]
[1769690306644,0.002,2936.4,2935.9,0.001]
[1769690306933,0.002,2936.4,2935.7,3.63492136]
[1769690307243,0.002,2936.4,2935.8,2.78334956]
[1769690309037,2.36562718,2936.4,2935.5,0.001]
[1769690309413,3.10403493,2936.3,2935.5,0.001]
[1769690310435,0.85144063,2936.2,2935.5,0.001]
[1769690310808,1.02846427,2936.2,2935.5,0.001]
[1769690316369,2.33685716,2936.1,2934.9,2.65824645]
[1769690316648,2.33685716,2936.1,2934.8,0.8538468]
[1769690316649,2.33685716,2935.8,2934.8,0.002]
[1769690317326,0.85158565,2935.7,2934.8,0.002]
[1769690317511,2.33405312,2935.6,2934.8,0.002]
[1769690317714,0.31856388,2935.5,2934.8,0.002]
[1769690318445,2.64984882,2935.5,2934.8,0.002]
[1769690319540,0.85167268,2935.4,2934.8,0.002]
[1769690321149,0.85167268,2935.4,2935.0,0.002]
[1769690325047,3.16691436,2935.4,2935.0,0.002]
[1769690325255,0.68920643,2935.3,2935.0,0.002]
[1769690326153,0.85168618,2935.4,2935.0,0.002]
[1769690331654,0.85168618,2935.4,2934.8,0.002]
[1769690331655,3.14962675,2935.4,2934.8,0.002]
[1769690331954,0.85168618,2935.4,2934.8,0.002]
[1769690332830,0.85168618,2935.4,2935.0,0.002]
[1769690334132,1.56568618,2935.4,2935.0,0.002]
[1769690334328,0.52908356,2935.3,2935.0,0.002]
[1769690336068,0.17475659,2934.5,2934.3,2.61118742]
[1769690336563,0.85182735,2934.9,2934.4,2.60918742]
[1769690338264,1.27772577,2934.9,2934.4,2.60918742]
[1769690338666,1.27772577,2934.9,2934.3,0.002]
[1769690339863,2.61332889,2934.6,2934.0,0.002]
[1769690340280,3.46437398,2934.5,2934.0,0.002]
[1769690340487,1.40121095,2934.4,2934.0,0.002]
[1769690340786,1.40121095,2934.4,2933.5,2.60918742]
[1769690340787,4.01365105,2934.4,2933.5,2.60918742]
[1769690341146,2.6124401,2934.3,2933.5,2.60918742]
[1769690341381,2.6124401,2934.3,2933.3,2.60918742]
[1769690342280,3.4627444,2934.2,2933.3,2.60918742]
[1769690343991,0.85202099,2934.2,2933.4,2.60918742]
[1769690344290,0.45515126,2934.1,2933.4,2.60918742]
[1769690344452,0.85207907,2934.0,2933.4,2.60918742]
[1769690344652,0.85207907,2934.0,2933.2,2.60918742]
[1769690345254,0.85207907,2934.0,2933.1,0.85233848]
[1769690345485,0.85207907,2934.0,2933.3,2.60918742]
[1769690346978,0.85207907,2934.0,2933.5,2.60918742]
[1769690348191,0.85207907,2934.0,2933.3,2.56118742]
[1769690349684,0.85207907,2934.0,2933.0,2.60918742]
[1769690350074,3.50547374,2934.0,2933.0,2.60918742]
[1769690350260,3.3902803,2933.9,2933.0,2.60918742]
[1769690350460,0.714,2933.8,2933.0,2.60918742]
[1769690350667,0.8521662,2933.7,2933.0,2.60918742]
[1769690352590,1.5661662,2933.7,2933.0,2.60918742]
[1769690353711,1.5661662,2933.7,2932.9,0.002]
[1769690353999,0.76257967,2933.6,2932.9,2.61118742]
[1769690354764,0.8522243,2933.5,2932.9,2.61118742]
[1769690356101,0.8522243,2933.5,2932.9,0.002]
[1769690356812,3.50160588,2933.5,2933.1,0.002]
[1769690357006,9.2362774,2933.4,2932.8,0.002]
[1769690357193,0.7450316,2933.3,2932.8,0.002]
[1769690358827,0.85231146,2933.2,2932.5,0.002]
[1769690360209,2.69433104,2933.1,2932.0,0.85264162]
[1769690360415,0.35466425,2933.0,2932.1,2.60918742]
[1769690360906,0.85239864,2932.9,2932.1,2.60918742]
[1769690363507,3.5456983,2932.9,2932.1,1.81415576]
[1769690363710,1.00035861,2932.8,2931.9,2.61118742]
[1769690363910,0.714,2932.7,2931.9,2.61118742]
[1769690365612,0.85248584,2932.6,2931.9,2.61118742]
[1769690367115,0.57044587,2932.5,2931.9,2.61118742]
[1769690368610,1.42296464,2932.5,2931.9,2.61118742]
[1769690368790,2.13696464,2932.5,2932.1,0.002]
[1769690369106,0.56844587,2932.4,2931.9,2.61118742]
[1769690369887,0.78194233,2932.4,2931.9,0.002]
[1769690370808,1.63450773,2932.4,2931.9,0.002]
[1769690373714,1.06606186,2932.4,2931.9,0.002]
[1769690374315,1.06606186,2932.4,2931.9,0.00096673]
[1769690376036,2.68533981,2932.1,2931.5,0.002]
[1769690376538,5.07456294,2932.2,2931.5,0.002]
[1769690377127,5.07456294,2932.2,2931.4,2.77750389]
[1769690377300,0.5654126,2932.1,2931.4,2.77750389]
[1769690377505,0.85261273,2932.2,2931.4,2.2110567]
[1769690377714,1.18367237,2932.1,2931.4,2.2110567]
[1769690377914,0.43693502,2932.0,2931.4,2.2110567]
[1769690378300,0.43693502,2932.0,2930.8,2.77550389]
[1769690379513,1.28962021,2932.0,2931.0,2.77550389]
[1769690379705,0.43693502,2931.9,2931.0,2.77550389]
[1769690380034,0.98162401,2931.9,2931.0,2.77550389]
[1769690381138,0.98262401,2931.9,2931.0,2.77550389]
[1769690381940,0.85271846,2931.8,2931.1,2.77550389]
[1769690382120,1.56771846,2931.8,2931.1,2.77550389]
[1769690382326,0.715,2931.8,2931.1,2.77550389]
[1769690382639,1.31110673,2931.8,2931.1,2.77550389]
[1769690383724,1.31110673,2931.8,2930.8,2.77550389]
[1769690383927,3.53811645,2931.6,2930.7,0.002]
[1769690384537,3.53811645,2931.6,2930.7,2.77750389]
[1769690384959,2.68533981,2931.5,2930.7,2.77750389]
[1769690385116,0.35381165,2931.4,2930.7,2.77750389]
[1769690385540,0.35381165,2931.4,2930.7,0.002]
[1769690386513,3.89199792,2931.4,2930.7,0.002]
[1769690387169,2.68533981,2931.3,2930.7,0.002]
[1769690387318,2.68533981,2931.2,2930.7,0.002]
[1769690387519,5.08707446,2931.3,2929.5,3.41351927]
[1769690387520,7.77241427,2930.7,2929.5,2.77550389]
[1769690387750,1.13405168,2930.6,2929.7,2.77550389]
[1769690388047,0.715,2930.6,2929.7,2.77550389]
[1769690388351,0.715,2930.5,2929.8,2.77550389]
[1769690388513,0.715,2930.5,2929.8,3.62879954]
[1769690389013,1.56811198,2930.5,2929.8,2.77550389]
[1769690389210,1.56811198,2930.5,2929.6,0.85334131]
[1769690389211,4.25345179,2930.5,2929.6,3.62885764]
[1769690389440,0.76657451,2930.4,2929.6,3.62885764]
[1769690389612,0.76657451,2930.4,2929.7,2.77550389]
[1769690390428,3.45191432,2930.4,2929.7,0.85332407]
[1769690390629,4.30504054,2930.4,2929.4,0.85109149]
[1769690390934,0.43460943,2930.3,2929.5,2.77550389]
[1769690392212,3.11994924,2930.3,2929.3,3.62893557]
[1769690392417,3.11994924,2930.3,2929.2,3.41388219]
[1769690392418,3.11994924,2930.3,2929.2,0.8534724]
[1769690392641,3.11994924,2930.3,2929.1,2.77550389]
[1769690392642,2.68533981,2930.1,2930.0,0.002]
[1769690392843,2.68533981,2930.1,2929.1,2.77550389]
[1769690392844,3.11946579,2930.1,2929.1,2.77550389]
[1769690393045,0.43412598,2930.0,2929.8,0.002]
[1769690393257,0.43412598,2930.0,2929.2,2.77550389]
[1769690393426,0.31194658,2929.9,2929.2,2.77550389]
[1769690394644,2.99728639,2929.9,2928.7,2.77550389]
[1769690394849,2.99728639,2929.9,2928.9,2.77550389]
[1769690394850,3.53864037,2929.8,2928.9,2.77550389]
[1769690395054,2.68533981,2929.7,2928.7,2.77550389]
[1769690395250,0.35386404,2929.6,2928.7,3.62911985]
[1769690395440,0.35386404,2929.6,2928.7,3.62912065]
[1769690395842,0.35386404,2929.6,2928.8,2.91128013]
[1769690396030,2.63077738,2929.6,2928.6,0.002]
[1769690396390,2.63077738,2929.5,2928.6,0.002]
[1769690396653,7.71785184,2929.0,2928.1,2.91128013]
[1769690396857,1.56856277,2928.9,2928.2,2.91128013]
[1769690397156,0.715,2928.9,2928.2,2.91128013]
[1769690397364,0.715,2928.8,2928.2,2.91128013]
[1769690398222,2.63077738,2928.9,2927.6,2.91128013]
[1769690398435,3.34577738,2928.8,2927.6,2.91128013]
[1769690398638,0.33457774,2928.7,2927.6,2.91128013]
[1769690398864,2.63077738,2928.5,2927.6,3.76521916]
[1769690399027,2.63077738,2928.5,2927.6,2.91128013]
[1769690399575,2.63077738,2928.5,2926.7,5.08707446]
[1769690399576,2.63077738,2928.0,2926.2,0.23657092]
[1769690399854,2.63077738,2928.0,2926.0,3.41763031]
[1769690399855,0.1777,2926.7,2926.5,2.91128013]
[1769690400175,1.14865547,2927.5,2926.5,2.91128013]
[1769690400360,3.77943285,2927.5,2926.5,2.91128013]
[1769690400516,0.82939876,2927.4,2926.4,3.76555836]
[1769690400717,0.82939876,2927.4,2925.7,3.41792695]
[1769690400718,0.178,2927.6,2926.7,2.91128013]
[1769690401032,0.715,2928.5,2927.2,2.91128013]
[1769690401352,0.715,2928.5,2926.8,0.8883422]
[1769690401353,2.63077738,2928.6,2927.0,2.91128013]
[1769690401576,2.63077738,2928.3,2927.0,2.91128013]
[1769690401740,2.63077738,2928.1,2927.1,0.29112801]
[1769690402063,0.715,2928.0,2927.1,2.91128013]
[1769690402450,3.34577738,2928.0,2926.8,2.91128013]
[1769690402769,2.63077738,2927.9,2926.7,0.85419301]
[1769690402977,1.5688439,2928.0,2926.7,2.91128013]
[1769690403176,0.85376681,2928.2,2926.9,2.91128013]
[1769690403544,0.41905168,2928.1,2926.8,0.034167]
[1769690403742,0.85375519,2928.3,2926.9,2.91128013]
[1769690404283,2.8089246,2928.5,2927.1,2.91128013]
[1769690404284,0.17814722,2928.5,2927.1,2.91128013]
[1769690404585,0.853585,2928.9,2927.3,2.91128013]
[1769690404742,3.484311,2929.0,2927.5,2.91128013]
[1769690404937,0.3484311,2928.9,2927.8,2.91128013]
[1769690406843,2.97920848,2928.9,2927.8,2.91128013]
[1769690407043,0.85359191,2928.8,2927.8,3.76514615]
[1769690408178,1.20201083,2928.9,2927.9,2.58208413]
[1769690408591,0.3484311,2928.9,2927.9,2.58208413]
[1769690408786,0.85341708,2929.4,2927.9,3.26724381]
[1769690409367,3.48419446,2929.4,2928.1,2.91128013]
[1769690411284,3.484311,2929.0,2928.0,0.85382513]
[1769690411498,0.3484311,2928.9,2928.0,0.85382513]
[1769690413388,0.3484311,2928.9,2928.0,3.76510526]
[1769690413589,4.75537738,2929.1,2928.0,2.91128013]
[1769690413790,2.63077738,2928.9,2927.2,2.91128013]
[1769690414000,30.0,2928.6,2927.2,3.76532155]
[1769690414159,2.63077738,2928.5,2927.2,3.76532155]
[1769690414476,2.63077738,2928.5,2927.2,2.91128013]
[1769690414677,2.63077738,2928.1,2926.9,2.91128013]
[1769690414877,2.63077738,2928.1,2926.9,3.76542351]
[1769690415257,2.63077738,2927.7,2926.7,0.002]
[1769690415481,2.63077738,2927.5,2926.7,0.002]
[1769690415763,0.34847192,2927.4,2926.7,0.002]
[1769690417294,0.34847192,2927.4,2926.9,0.002]
[1769690417511,0.85402931,2927.3,2926.9,0.002]
[1769690417807,0.85402931,2927.3,2926.6,0.002]
[1769690418311,0.1024,2927.9,2926.6,0.002]
[1769690418312,13.41360293,2928.3,2926.7,2.91128013]
[1769690418492,4.34689695,2928.2,2926.9,2.91128013]
[1769690418705,2.63077738,2928.2,2926.9,2.91128013]
[1769690418929,9.508496,2927.4,2926.6,0.002]
[1769690419207,2.63077738,2927.4,2925.9,3.76571347]
[1769690419410,2.63077738,2927.4,2926.0,0.37657135]
[1769690419411,0.26307774,2927.3,2926.0,0.37657135]
[1769690419584,0.85405848,2927.2,2926.0,1.23097901]
[1769690419790,2.63077738,2927.1,2926.0,1.23097123]
[1769690420580,2.63077738,2927.1,2925.8,0.03417868]
[1769690420907,2.63077738,2927.1,2925.5,0.85653992]
[1769690421073,2.63077738,2927.1,2925.5,2.91328013]
[1769690421282,2.63077738,2927.1,2925.8,0.85446166]
[1769690421507,0.34848359,2927.0,2925.8,0.85446166]
[1769690421707,0.85414602,2926.9,2925.7,3.41796896]
[1769690421908,0.26307774,2927.3,2925.8,2.94545881]
[1769690422110,0.52392666,2928.4,2926.0,2.91128013]
[1769690422111,2.63077738,2928.2,2926.0,2.91128013]
[1769690422292,3.72514,2928.1,2926.2,2.91128013]
[1769690422477,3.72514,2928.1,2926.4,2.91128013]
[1769690422676,0.63559174,2928.0,2926.6,2.91128013]
[1769690423009,2.63077738,2928.2,2926.6,2.91128013]
[1769690423010,8.677789,2928.1,2926.6,2.91128013]
[1769690423394,11.758692,2927.7,2926.2,2.91128013]
[1769690423785,2.63077738,2927.5,2925.9,0.85441764]
[1769690423983,2.63077738,2927.5,2925.9,0.85441915]
[1769690424276,8.348177,2927.3,2925.8,2.91128013]
[1769690424492,1.09789544,2927.2,2926.0,0.85438768]
[1769690424695,2.63077738,2927.4,2926.1,0.85437356]
[1769690425613,2.63077738,2927.4,2926.2,0.8543485]
[1769690425784,0.85402931,2927.3,2926.1,0.85437954]
[1769690425985,0.42701465,2927.2,2926.2,3.49473802]
[1769690426905,0.42701465,2927.2,2926.2,0.70606719]
[1769690427216,0.42701465,2927.2,2925.9,3.93422008]
[1769690427393,0.42701465,2927.2,2925.9,3.07979884]
[1769690427585,2.99108064,2927.1,2925.5,2.79067083]
[1769690427791,0.85411684,2927.0,2925.5,3.64521838]
[1769690428013,0.85411684,2927.0,2925.6,2.78867083]
[1769690428202,0.72616649,2926.9,2925.7,2.78867083]
[1769690428519,0.85397096,2927.5,2925.9,2.78867083]
[1769690428686,0.85397096,2927.5,2926.1,2.78867083]
[1769690429297,0.85397096,2927.5,2926.2,2.78867083]
[1769690429498,0.42697657,2927.4,2926.4,0.002]
[1769690429694,0.85402931,2927.3,2926.4,0.85629196]
[1769690429896,0.85402931,2927.3,2926.4,0.002]
[1769690430718,1.28099824,2927.4,2926.4,0.002]
[1769690430919,0.85402167,2927.4,2926.4,0.50412252]
[1769690431308,0.85397096,2927.5,2926.4,3.29279335]
[1769690431907,3.41567289,2927.7,2926.6,2.78867083]
[1769690432112,0.85385429,2927.9,2926.6,2.78867083]
[1769690432433,0.85385429,2927.9,2926.6,3.49501458]
[1769690434110,3.41641719,2928.0,2926.7,3.73925332]
[1769690435039,6.37244156,2928.0,2926.7,2.88504893]
[1769690436233,2.95602437,2927.9,2926.7,2.88504893]
[1769690437442,0.001,2928.0,2926.8,2.91921593]
[1769690437648,0.34262758,2928.0,2927.0,2.88504893]
[1769690438444,0.001,2928.0,2927.2,2.88504893]
[1769690439014,0.85483946,2928.0,2927.0,0.85409595]
[1769690439418,0.85483946,2928.0,2926.9,4.11652883]
[1769690439941,0.85483946,2928.0,2926.9,3.26239014]
[1769690440849,0.001,2928.0,2927.0,2.88504893]
[1769690441013,0.85367935,2928.5,2927.1,3.30011828]
[1769690441667,0.85367935,2928.5,2927.1,3.33428178]
[1769690442768,0.001,2927.8,2927.3,2.88504893]
[1769690442971,0.001,2927.8,2927.4,0.37391074]
[1769690444591,0.001,2927.8,2927.4,3.25895967]
[1769690445298,0.001,2927.8,2927.5,3.73901989]
[1769690448924,0.001,2927.8,2927.6,2.88504893]
[1769690449839,0.001,2928.6,2927.8,2.88504893]
[1769690452032,0.001,2928.6,2927.9,0.85385429]
[1769690452333,0.001,2928.6,2928.0,2.88504893]
[1769690452632,0.85347535,2929.2,2928.0,2.88504893]
[1769690452950,0.8184,2929.8,2928.0,2.88504893]
[1769690452951,0.85332969,2929.7,2928.0,2.88504893]
[1769690453150,0.85318408,2930.2,2928.4,2.88504893]
[1769690453341,0.72219448,2930.1,2928.6,2.88504893]
[1769690453739,2.95602437,2929.8,2928.6,2.88504893]
[1769690454348,0.001,2929.5,2928.7,0.85362106]
[1769690455258,0.001,2929.5,2928.6,2.88504893]
[1769690455428,0.001,2929.5,2928.3,3.88544219]
[1769690455628,0.30447741,2929.4,2928.3,3.88544219]
[1769690456023,0.30447741,2929.4,2928.5,0.85367539]
[1769690456335,0.85344621,2929.3,2928.4,3.03172163]
[1769690458825,0.85344621,2929.3,2928.4,3.88540873]
[1769690459959,0.85344621,2929.3,2928.4,3.03172163]
[1769690460166,0.45716041,2929.2,2928.4,3.03172163]
[1769690460464,0.45716041,2929.2,2928.4,3.88542489]
[1769690460850,0.85350448,2929.1,2928.4,3.03172163]
[1769690461023,0.85350448,2929.1,2928.2,0.85374628]
[1769690461440,1.31065724,2929.2,2928.4,0.85370484]
[1769690461679,0.47244707,2929.1,2928.4,0.85370484]
[1769690462364,0.85346852,2929.3,2928.5,3.03172163]
[1769690462564,3.71818171,2929.4,2928.5,3.03172163]
[1769690462565,1.15791945,2929.4,2928.5,3.03172163]
[1769690462769,1.15791945,2929.4,2928.7,3.03172163]
[1769690463351,0.30447741,2929.4,2928.7,3.88532872]
[1769690463670,0.85324232,2930.0,2928.8,3.03172163]
[1769690464932,0.85324232,2930.0,2929.0,3.03172163]
[1769690465254,1.57543005,2930.1,2929.0,3.03172163]
[1769690466133,0.001,2929.8,2929.0,3.03172163]
[1769690466367,0.001,2929.8,2929.2,3.03172163]
[1769690466964,0.001,2929.8,2929.4,3.03172163]
[1769690469866,0.001,2929.8,2929.5,3.03172163]
[1769690472641,0.001,2929.8,2929.5,3.88510331]
[1769690472839,3.292862,2930.7,2929.6,3.03172163]
[1769690473173,6.45581173,2930.9,2929.6,3.03172163]
[1769690473174,0.42652956,2930.6,2929.6,3.75661907]
[1769690473382,3.04377407,2931.5,2929.9,3.03172163]
[1769690473533,3.04377407,2931.3,2930.0,0.85324232]
[1769690473738,3.43343496,2931.2,2930.1,0.37391074]
[1769690473977,3.04377407,2931.2,2930.1,0.37391074]
[1769690475581,0.85292211,2931.1,2930.2,0.85318408]
[1769690475805,0.85290888,2931.2,2930.3,3.03172163]
[1769690477752,0.85283482,2931.4,2930.4,3.03172163]
[1769690478066,1.49833647,2931.4,2930.4,3.03172163]
[1769690478994,0.001,2931.0,2930.4,3.03172163]
[1769690480593,0.001,2931.0,2930.4,3.88483574]
[1769690480744,0.001,2931.0,2930.5,3.03172163]
[1769690480948,0.001,2931.0,2930.6,0.38848357]